bitfinex-derivatives/quotes_BTCF0:USTF0_20250713
["timestamp","ask_amount","ask_price","bid_price","bid_amount"]
[1752416982817,0.004,119170.0,119160.0,1.17403091]
[1752416983008,0.0002,119180.0,119170.0,0.167753]
[1752416983208,0.02257,119200.0,119190.0,0.4320049]
[1752416983413,0.9993295,119210.0,119200.0,0.2695208]
[1752416983614,0.09226281,119210.0,119200.0,0.7927908]
[1752416983815,1.02300961,119210.0,119200.0,0.7927908]
[1752416984620,0.85531281,119210.0,119200.0,0.7927908]
[1752416984915,0.06969281,119210.0,119200.0,0.7887908]
[1752416985121,0.004,119210.0,119200.0,0.7887908]
[1752416985518,1e-07,119210.0,119200.0,0.7887908]
[1752416986022,1e-07,119210.0,119200.0,0.6263208]
[1752416986614,0.0030001,119210.0,119200.0,0.63529783]
[1752416986810,0.0030001,119210.0,119200.0,0.79776783]
[1752416987020,0.0090001,119210.0,119200.0,0.79876783]
[1752416987819,0.0070001,119210.0,119200.0,0.80076783]
[1752416988020,0.0070001,119210.0,119200.0,0.80244561]
[1752416988619,0.0070001,119210.0,119200.0,1.47024561]
[1752416989222,0.0020001,119210.0,119200.0,1.47224561]
[1752416991220,0.0020001,119210.0,119200.0,0.80444561]
[1752416991616,0.0020001,119210.0,119200.0,1.47156561]
[1752416991817,0.1922669,119210.0,119200.0,0.79646858]
[1752416992123,0.1922669,119210.0,119200.0,1.46358858]
[1752416992324,0.1922669,119210.0,119200.0,0.79646858]
[1752416992921,0.0245701,119210.0,119200.0,0.79646858]
[1752416993817,0.0020001,119210.0,119200.0,0.79646858]
[1752416994120,0.0020001,119210.0,119200.0,0.8046798]
[1752416995118,0.0245701,119210.0,119200.0,0.79646858]
[1752416995726,0.0020001,119210.0,119200.0,0.79646858]
[1752416997125,0.01862476,119210.0,119200.0,0.79646858]
[1752416997524,0.01862476,119210.0,119200.0,0.80460198]
[1752416997826,0.02257,119230.0,119220.0,0.292953]
[1752416998021,0.02257,119230.0,119220.0,0.792763]
[1752416998221,0.02257,119240.0,119220.0,0.3608]
[1752416998421,0.02657,119250.0,119240.0,0.4319348]
[1752416998725,0.02657,119250.0,119240.0,0.7927348]
[1752416999317,0.02657,119250.0,119240.0,0.7917348]
[1752416999318,0.1942108,119250.0,119240.0,0.7917348]
[1752416999519,0.2883408,119250.0,119240.0,0.7917348]
[1752416999724,0.1207,119250.0,119240.0,0.7917348]
[1752416999921,0.02677,119250.0,119240.0,0.79993495]
[1752417000122,0.0082,119250.0,119240.0,0.80093495]
[1752417000325,0.0102,119250.0,119240.0,0.80093495]
[1752417001225,0.0102,119250.0,119240.0,0.7929348]
[1752417002619,1.18273,119270.0,119260.0,0.1676267]
[1752417002822,0.02257,119270.0,119260.0,0.7927067]
[1752417003229,0.1901827,119270.0,119260.0,0.7927067]
[1752417003429,1.0747346,119280.0,119270.0,0.4318927]
[1752417003826,1.14040463,119280.0,119270.0,0.4278927]
[1752417004239,1.14040463,119280.0,119270.0,0.4218927]
[1752417004431,1.09850203,119280.0,119270.0,0.4218927]
[1752417004825,0.3579927,119270.0,119260.0,0.24282]
[1752417005029,0.7187927,119270.0,119260.0,0.4104467]
[1752417005533,0.7187927,119270.0,119260.0,0.4333567]
[1752417005928,0.9483527,119270.0,119260.0,0.4333567]
[1752417006233,0.9483527,119270.0,119260.0,0.4323567]
[1752417006431,0.9483527,119270.0,119260.0,0.4313567]
[1752417007131,0.9483527,119270.0,119260.0,0.24082]
[1752417007132,1.3827227,119270.0,119260.0,0.24082]
[1752417007533,1.3827227,119270.0,119260.0,0.4084467]
[1752417007734,1.3827227,119270.0,119260.0,0.4313567]
[1752417007735,0.2863127,119270.0,119260.0,0.4313567]
[1752417008027,1.3107527,119270.0,119260.0,0.4313567]
[1752417008234,0.9499527,119270.0,119260.0,0.4313567]
[1752417008730,0.9499527,119270.0,119260.0,0.7921567]
[1752417008934,0.9499527,119270.0,119260.0,0.4313567]
[1752417009234,0.9497927,119270.0,119260.0,0.4313567]
[1752417009839,0.96627334,119270.0,119260.0,0.4313567]
[1752417011037,0.96627334,119270.0,119260.0,0.4084467]
[1752417011238,1.03784334,119270.0,119260.0,0.4084467]
[1752417011532,1.39864334,119270.0,119260.0,0.24082]
[1752417012331,0.1676276,119260.0,119250.0,0.3608]
[1752417012535,0.37055824,119260.0,119250.0,0.23673]
[1752417012735,0.37055824,119260.0,119250.0,0.4043716]
[1752417012933,0.37055824,119260.0,119250.0,0.23673]
[1752417013135,0.73135824,119260.0,119250.0,0.23673]
[1752417013538,0.3540915,119250.0,119240.0,0.40606282]
[1752417013738,1.39381214,119250.0,119240.0,0.40606282]
[1752417013933,1.39381214,119250.0,119240.0,0.23840722]
[1752417014138,1.39381214,119250.0,119240.0,0.30631282]
[1752417014339,0.96128214,119250.0,119240.0,0.40606282]
[1752417014638,1.32208214,119250.0,119240.0,0.42897282]
[1752417014837,0.67876064,119250.0,119240.0,0.78977282]
[1752417015236,0.70145064,119250.0,119240.0,0.79177282]
[1752417015438,0.01648064,119250.0,119240.0,0.79177282]
[1752417015642,0.01648064,119250.0,119240.0,0.91750812]
[1752417015838,0.01648064,119260.0,119240.0,0.76985542]
[1752417016043,0.662,119260.0,119250.0,0.8908962]
[1752417016246,0.67848064,119260.0,119250.0,0.8908962]
[1752417016541,0.67848754,119260.0,119250.0,0.9138062]
[1752417016739,0.01648754,119260.0,119250.0,0.9138062]
[1752417018033,0.18411494,119260.0,119250.0,0.9138062]
[1752417018235,0.18411494,119260.0,119250.0,0.8728968]
[1752417019041,0.18511494,119260.0,119250.0,0.8728968]
[1752417020541,0.20780494,119260.0,119250.0,0.8728968]
[1752417020747,0.20780494,119260.0,119250.0,0.7892815]
[1752417020748,0.30019494,119260.0,119250.0,0.7892815]
[1752417021935,0.30019494,119260.0,119250.0,0.4284815]
[1752417022136,0.30019494,119260.0,119250.0,0.7892815]
[1752417023246,0.13256754,119260.0,119250.0,0.7892815]
[1752417023447,0.30019454,119260.0,119250.0,0.7892815]
[1752417023644,0.13256754,119260.0,119250.0,0.7892815]
[1752417023943,0.01768754,119260.0,119250.0,0.7892815]
[1752417024639,0.04037754,119260.0,119250.0,0.7892815]
[1752417025246,0.30019454,119260.0,119250.0,0.7892815]
[1752417025442,0.36864454,119260.0,119250.0,0.0002]
[1752417025642,0.18333,119250.0,119220.0,0.13698]
[1752417025840,0.7101192,119230.0,119220.0,0.23673]
[1752417026047,0.72660674,119230.0,119220.0,0.23673]
[1752417026846,0.1676832,119220.0,119210.0,0.6352493]
[1752417027044,1.38654074,119220.0,119210.0,0.23673]
[1752417027349,0.95877074,119220.0,119210.0,0.4273373]
[1752417028049,1.02476517,119220.0,119210.0,0.4273373]
[1752417028651,1.02576517,119220.0,119210.0,0.4333373]
[1752417029247,1.02576517,119220.0,119210.0,0.24273]
[1752417029541,1.09253517,119220.0,119210.0,0.14298]
[1752417029746,1.45333517,119220.0,119210.0,0.3106773]
[1752417029947,1.09253517,119220.0,119210.0,0.4104273]
[1752417030147,1.02532517,119220.0,119210.0,0.4333373]
[1752417030348,1.02520517,119220.0,119210.0,0.4333373]
[1752417030550,0.10617197,119220.0,119210.0,0.7941373]
[1752417030749,0.08348197,119220.0,119210.0,0.7941373]
[1752417030949,0.10617197,119220.0,119210.0,0.7941373]
[1752417031253,0.36604517,119220.0,119210.0,0.7941373]
[1752417031751,0.36604517,119220.0,119210.0,0.4333373]
[1752417032046,0.43281517,119220.0,119210.0,0.4144273]
[1752417032347,0.43281517,119220.0,119210.0,0.01]
[1752417032552,0.34062517,119220.0,119210.0,0.01]
[1752417033049,0.75839317,119220.0,119210.0,1e-07]
[1752417033246,0.1677395,119180.0,119170.0,0.13698]
[1752417033445,0.20701775,119180.0,119170.0,0.3047336]
[1752417033652,0.8490295,119180.0,119170.0,0.6884436]
[1752417034044,0.86561699,119180.0,119170.0,0.49778]
[1752417034256,0.93238699,119180.0,119170.0,0.13698]
[1752417034946,0.1677536,119170.0,119160.0,0.54935276]
[1752417035146,0.27380109,119170.0,119160.0,0.14058845]
[1752417035446,0.27380109,119170.0,119160.0,0.00360845]
[1752417035650,0.63460109,119170.0,119160.0,0.00360845]
[1752417035846,0.80243309,119170.0,119160.0,0.00360845]
[1752417036445,1.46063309,119170.0,119160.0,0.14058845]
[1752417036744,1.46163309,119170.0,119160.0,0.00560845]
[1752417038252,1.46063309,119170.0,119160.0,0.00960845]
[1752417038451,1.10083309,119170.0,119160.0,0.00960845]
[1752417038645,1.46163309,119170.0,119160.0,0.00960845]
[1752417038844,1.10083309,119170.0,119160.0,0.00960845]
[1752417039047,0.44263309,119170.0,119160.0,0.14640845]
[1752417039254,0.86575109,119170.0,119160.0,0.69862605]
[1752417039454,1.58735109,119170.0,119160.0,0.17005845]
[1752417039851,1.58735109,119170.0,119160.0,0.17305845]
[1752417040049,0.04027749,119170.0,119160.0,0.70162605]
[1752417040258,0.20803099,119170.0,119160.0,0.70162605]
[1752417040551,0.04027749,119170.0,119160.0,0.70162605]
[1752417040756,0.20803099,119170.0,119160.0,0.70162605]
[1752417041452,0.86539099,119170.0,119160.0,0.70162605]
[1752417042046,0.86539099,119170.0,119160.0,0.34082605]
[1752417042252,0.86539099,119170.0,119160.0,0.34102605]
[1752417042451,0.86539099,119170.0,119160.0,0.70182605]
[1752417042749,0.69763749,119170.0,119160.0,0.70182605]
[1752417042949,0.67494749,119170.0,119160.0,0.70182605]
[1752417043150,0.01758749,119170.0,119160.0,0.70182605]
[1752417043557,0.001,119170.0,119160.0,0.70182605]
[1752417043747,0.0002,119180.0,119170.0,0.3282035]
[1752417043954,0.0002,119180.0,119170.0,0.6892035]
[1752417044256,0.65684,119200.0,119190.0,0.3281753]
[1752417044553,0.9331446,119210.0,119200.0,0.1913613]
[1752417044748,0.9331446,119210.0,119200.0,0.6889613]
[1752417045155,0.8492935,119210.0,119200.0,0.6889613]
[1752417045951,0.002,119210.0,119200.0,0.6889613]
[1752417046159,0.8261772,119210.0,119200.0,0.6889613]
[1752417046455,0.002,119210.0,119200.0,0.6889613]
[1752417046660,0.004,119210.0,119200.0,0.6889613]
[1752417047055,0.1944872,119210.0,119200.0,0.52125]
[1752417047258,0.2771572,119210.0,119200.0,0.3045113]
[1752417047456,0.6379572,119210.0,119200.0,0.1368]
[1752417047964,0.1905013,119200.0,119190.0,0.4976]
[1752417048262,0.8467013,119200.0,119190.0,0.6653254]
[1752417048460,0.8467013,119200.0,119190.0,0.6889754]
[1752417049063,0.8467013,119200.0,119190.0,0.52125]
[1752417049270,0.8467013,119200.0,119190.0,0.1378]
[1752417049455,1.2901713,119200.0,119190.0,0.1388]
[1752417050466,0.9293713,119200.0,119190.0,0.1388]
[1752417050663,1.2901713,119200.0,119190.0,0.002]
[1752417051063,0.9293713,119200.0,119190.0,0.3065253]
[1752417051663,1.2901713,119200.0,119190.0,0.002]
[1752417053163,0.1905294,119180.0,119170.0,0.3045535]
[1752417053369,1.2871594,119180.0,119170.0,0.1368]
[1752417053870,0.9263594,119180.0,119170.0,0.1368]
[1752417054272,0.9263594,119180.0,119170.0,0.3045535]
[1752417054570,0.9263594,119180.0,119170.0,0.1368]
[1752417054771,0.9263594,119180.0,119170.0,0.3045535]
[1752417055274,1.2871594,119180.0,119170.0,0.1368]
[1752417055473,1.2871594,119180.0,119170.0,0.3045535]
[1752417055663,1.2871594,119180.0,119170.0,0.3065535]
[1752417055869,0.9263594,119180.0,119170.0,0.3065535]
[1752417056066,0.01646897,119180.0,119170.0,0.7329396]
[1752417056269,0.18620837,119180.0,119170.0,0.7748757]
[1752417056566,0.04125897,119180.0,119170.0,0.7748757]
[1752417056777,0.01846897,119180.0,119170.0,0.7748757]
[1752417056973,0.002,119180.0,119170.0,0.7748757]
[1752417057776,0.1697394,119180.0,119170.0,0.7748757]
[1752417059078,0.1925294,119180.0,119170.0,0.6910035]
[1752417060372,0.1925294,119180.0,119170.0,0.3302035]
[1752417060570,0.1925294,119180.0,119170.0,0.6910035]
[1752417060764,0.1925294,119180.0,119170.0,0.6912035]
[1752417060765,0.1927294,119180.0,119170.0,0.6912035]
[1752417061066,0.1927294,119180.0,119170.0,0.3304035]
[1752417061267,0.1927294,119180.0,119170.0,0.6912035]
[1752417062272,0.8463294,119180.0,119170.0,0.6912035]
[1752417064876,0.9239194,119180.0,119170.0,0.6675535]
[1752417065075,0.9239194,119180.0,119170.0,0.4998]
[1752417065279,0.9239194,119180.0,119170.0,0.6675535]
[1752417065680,0.9239194,119180.0,119170.0,0.4998]
[1752417066080,1.0159394,119180.0,119170.0,0.4054435]
[1752417066579,1.0159394,119180.0,119170.0,0.23769]
[1752417066988,1.0159394,119180.0,119170.0,0.4054435]
[1752417067277,0.3623394,119180.0,119170.0,0.4054435]
[1752417067478,0.9374694,119180.0,119170.0,0.4301035]
[1752417068783,1.0133694,119180.0,119170.0,0.23769]
[1752417068983,1.3741694,119180.0,119170.0,0.23769]
[1752417069480,1.3741694,119180.0,119170.0,0.0022]
[1752417069685,0.1927035,119170.0,119160.0,0.02104984]
[1752417069887,0.2664035,119170.0,119160.0,0.02104984]
[1752417070087,0.6272035,119170.0,119160.0,0.02104984]
[1752417070386,0.2664035,119170.0,119160.0,0.15495984]
[1752417070586,0.8447835,119170.0,119160.0,0.15495984]
[1752417070786,0.8457835,119170.0,119160.0,0.35038744]
[1752417070984,0.8457435,119170.0,119160.0,0.71118744]
[1752417071185,0.653,119170.0,119160.0,0.71118744]
[1752417071385,0.654,119170.0,119160.0,0.71418744]
[1752417071581,0.65392,119170.0,119160.0,0.71418744]
[1752417071997,0.002,119170.0,119160.0,0.71418744]
[1752417074000,0.002,119170.0,119160.0,2.01786744]
[1752417077396,0.87962216,119190.0,119180.0,0.2634594]
[1752417077597,0.99868216,119190.0,119180.0,0.7828294]
[1752417077796,0.99868216,119190.0,119180.0,0.4220294]
[1752417078603,0.99968216,119190.0,119180.0,0.7828294]
[1752417079102,0.9385914,119190.0,119180.0,0.7828294]
[1752417079304,0.9395914,119190.0,119180.0,0.7828294]
[1752417080002,0.9395914,119190.0,119180.0,0.7581694]
[1752417080205,1.0152914,119190.0,119180.0,0.3973694]
[1752417080407,0.2618494,119180.0,119170.0,0.8420479]
[1752417080605,0.3624994,119180.0,119170.0,0.8420479]
[1752417080807,0.3624994,119180.0,119170.0,0.7581835]
[1752417081503,0.3624994,119180.0,119170.0,0.7581834]
[1752417081706,0.3624994,119180.0,119170.0,0.22963]
[1752417082003,0.3625133,119170.0,119160.0,0.46037554]
[1752417082204,1.0125933,119170.0,119160.0,0.46037554]
[1752417082805,1.0125933,119170.0,119160.0,0.25067984]
[1752417083211,1.0135933,119170.0,119160.0,0.15795984]
[1752417083507,1.3743933,119170.0,119160.0,0.15795984]
[1752417083810,1.3743933,119170.0,119160.0,0.32572724]
[1752417084011,1.3743933,119170.0,119160.0,0.15795984]
[1752417084405,1.0135933,119170.0,119160.0,0.15795984]
[1752417084608,1.0135933,119170.0,119160.0,0.32572734]
[1752417085107,1.3743933,119170.0,119160.0,0.32572734]
[1752417086004,1.0135933,119170.0,119160.0,0.32572734]
[1752417086209,1.0135933,119170.0,119160.0,0.42144734]
[1752417086411,0.9373733,119170.0,119160.0,0.44630734]
[1752417086806,0.9383733,119170.0,119160.0,0.44930734]
[1752417087312,0.9380533,119170.0,119160.0,0.81010734]
[1752417088112,0.67619,119170.0,119160.0,0.81010734]
[1752417088613,0.8439434,119170.0,119160.0,0.81010734]
[1752417089513,0.65124,119170.0,119160.0,0.81010734]
[1752417089914,0.002,119170.0,119160.0,0.81010734]
[1752417092011,0.002,119170.0,119160.0,0.97793934]
[1752417092619,0.002,119170.0,119160.0,0.81010734]
[1752417093113,0.002,119170.0,119160.0,2.10730734]
[1752417095314,0.1947034,119170.0,119160.0,0.81010734]
[1752417095516,0.02695,119170.0,119160.0,0.81010734]
[1752417095816,0.1947034,119170.0,119160.0,0.81010734]
[1752417096917,0.2888134,119170.0,119160.0,0.81010734]
[1752417097822,0.002,119170.0,119160.0,0.81010734]
[1752417099621,0.2792334,119170.0,119160.0,0.81010734]
[1752417099927,0.2792334,119170.0,119160.0,0.80918734]
[1752417102325,0.2792334,119170.0,119160.0,0.44838734]
[1752417102523,0.3499834,119170.0,119160.0,0.40720595]
[1752417103427,0.3499834,119170.0,119160.0,0.76800595]
[1752417104321,0.3499834,119170.0,119160.0,0.40720595]
[1752417105024,0.3499834,119170.0,119160.0,0.31148595]
[1752417105725,0.3499834,119170.0,119160.0,0.14371845]
[1752417106024,0.3499834,119170.0,119160.0,0.00980845]
[1752417106821,0.7107834,119170.0,119160.0,0.00980845]
[1752417107326,0.71911437,119170.0,119160.0,0.00980845]
[1752417108016,0.35831437,119170.0,119160.0,0.00980845]
[1752417108725,0.3602678,119170.0,119160.0,0.00980845]
[1752417109629,0.7210678,119170.0,119160.0,0.00980845]
[1752417110727,0.7210678,119170.0,119160.0,0.14834845]
[1752417111124,1.3663878,119170.0,119160.0,0.43350595]
[1752417111325,1.0055878,119170.0,119160.0,0.43350595]
[1752417111526,1.0055878,119170.0,119160.0,0.79430595]
[1752417112327,1.0055478,119170.0,119160.0,0.79430595]
[1752417112723,1.0055478,119170.0,119160.0,0.77056595]
[1752417113121,0.2895178,119170.0,119160.0,0.77056595]
[1752417113319,0.92614683,119170.0,119160.0,0.79430595]
[1752417113730,0.99689683,119170.0,119160.0,0.62653845]
[1752417113931,0.99689683,119170.0,119160.0,0.60279845]
[1752417114132,0.99689683,119170.0,119160.0,0.24199845]
[1752417114332,1.35761683,119170.0,119160.0,0.24199845]
[1752417115329,0.99681683,119170.0,119160.0,0.24199845]
[1752417115529,0.99681683,119170.0,119160.0,0.14834845]
[1752417115830,0.99681683,119170.0,119160.0,0.00980845]
[1752417115831,1.35761683,119170.0,119160.0,0.00980845]
[1752417116932,1.37426855,119170.0,119160.0,0.00980845]
[1752417124833,1.37426855,119170.0,119160.0,0.24199845]
[1752417125230,1.01346855,119170.0,119160.0,0.24199845]
[1752417125428,1.01190855,119170.0,119160.0,0.40976595]
[1752417125626,1.01190855,119170.0,119160.0,0.43451595]
[1752417125829,1.01190855,119170.0,119160.0,0.26674845]
[1752417126030,1.37270855,119170.0,119160.0,0.24199845]
[1752417126231,1.01190855,119170.0,119160.0,0.24199845]
[1752417126637,1.01190855,119170.0,119160.0,0.40976595]
[1752417126940,1.01190855,119170.0,119160.0,0.24199845]
[1752417129141,1.01190855,119170.0,119160.0,0.00980845]
[1752417129336,1.43275931,119170.0,119160.0,0.00980845]
[1752417129739,0.3116816,119150.0,119140.0,4e-05]
[1752417130043,1.35496332,119150.0,119140.0,4e-05]
[1752417130738,1.35691675,119150.0,119140.0,4e-05]
[1752417131544,1.35791675,119150.0,119140.0,0.00504]
[1752417132540,0.99711675,119150.0,119140.0,0.00504]
[1752417132735,0.99711675,119150.0,119140.0,0.13399]
[1752417132736,1.35759675,119150.0,119140.0,0.13399]
[1752417132940,0.99679675,119150.0,119140.0,0.13099]
[1752417133736,1.35759675,119150.0,119140.0,0.13099]
[1752417133942,1.06538571,119150.0,119140.0,0.13099]
[1752417134346,1.42718571,119150.0,119140.0,0.13199]
[1752417135444,1.42721044,119150.0,119140.0,0.13199]
[1752417136447,1.42721044,119150.0,119140.0,0.00304]
[1752417138750,0.3289797,119130.0,119120.0,0.13255966]
[1752417138947,1.34741615,119130.0,119120.0,0.13255966]
[1752417139548,1.34741615,119130.0,119120.0,0.00360966]
[1752417139755,1.71016958,119130.0,119120.0,0.00360966]
[1752417139946,1.71016958,119130.0,119100.0,0.22058]
[1752417139947,0.2468079,119110.0,119100.0,0.22058]
[1752417140251,0.97706435,119110.0,119100.0,0.22058]
[1752417140442,1.34629441,119110.0,119100.0,0.22058]
[1752417140853,1.34824784,119110.0,119100.0,0.22058]
[1752417141253,1.34824784,119110.0,119100.0,4e-05]
[1752417141552,1.34924784,119110.0,119100.0,0.00404]
[1752417141756,1.34494784,119110.0,119100.0,0.00404]
[1752417142858,1.34594784,119110.0,119100.0,0.00404]
[1752417143858,0.3091457,119090.0,119080.0,0.58394324]
[1752417144056,0.96618215,119090.0,119080.0,0.58394324]
[1752417144658,0.96618215,119090.0,119080.0,0.22314324]
[1752417144853,1.32698215,119090.0,119080.0,0.22314324]
[1752417145052,1.32893558,119090.0,119080.0,0.22314324]
[1752417145244,1.32893558,119090.0,119080.0,0.13155324]
[1752417145453,1.32893558,119090.0,119080.0,0.00260324]
[1752417146053,1.39595272,119090.0,119080.0,0.00260324]
[1752417146746,1.39695272,119090.0,119080.0,0.00860324]
[1752417146957,1.39695272,119090.0,119080.0,0.00880324]
[1752417147456,0.1678798,119080.0,119070.0,0.12895]
[1752417147754,0.32583625,119080.0,119070.0,0.12895]
[1752417147953,0.68858968,119080.0,119070.0,0.12895]
[1752417148253,0.2638639,119070.0,119060.0,0.22060043]
[1752417148453,0.96549035,119070.0,119060.0,0.22060043]
[1752417148661,0.96549035,119070.0,119060.0,0.12901043]
[1752417148954,1.32642526,119070.0,119060.0,6.043e-05]
[1752417149155,1.32837869,119070.0,119060.0,0.12901043]
[1752417149356,1.32937869,119070.0,119060.0,0.12901043]
[1752417149666,1.32937869,119070.0,119060.0,6.043e-05]
[1752417149964,1.32925869,119070.0,119060.0,0.22060043]
[1752417150154,1.32917869,119070.0,119060.0,0.22060043]
[1752417151259,0.68973869,119070.0,119060.0,0.22060043]
[1752417151461,1.32913869,119070.0,119060.0,0.22060043]
[1752417151860,0.68973869,119070.0,119060.0,0.22060043]
[1752417152155,0.92275893,119070.0,119060.0,0.60615043]
[1752417153062,0.92475893,119070.0,119060.0,0.60915043]
[1752417153363,0.97006893,119070.0,119060.0,0.13201043]
[1752417153558,0.33090893,119070.0,119060.0,0.22360043]
[1752417153768,0.85205893,119070.0,119060.0,0.77705843]
[1752417154064,0.64383343,119070.0,119060.0,1.19503443]
[1752417154253,0.00495343,119070.0,119060.0,1.19503443]
[1752417154558,0.64379343,119070.0,119060.0,1.19503443]
[1752417154865,0.2538109,119090.0,119080.0,0.4131698]
[1752417154866,0.1698761,119090.0,119080.0,0.4131698]
[1752417155066,0.82544202,119090.0,119080.0,0.7739698]
[1752417155859,0.92929202,119090.0,119080.0,0.60609]
[1752417156064,0.93029202,119090.0,119080.0,0.60909]
[1752417156453,0.98056202,119090.0,119080.0,0.22354]
[1752417156656,1.70216202,119090.0,119080.0,0.003]
[1752417157459,1.06436202,119090.0,119080.0,0.004]
[1752417157664,0.34276202,119090.0,119080.0,0.09461]
[1752417157966,0.34276202,119090.0,119080.0,0.45541]
[1752417158170,0.29249202,119090.0,119080.0,0.6478098]
[1752417158360,0.82696202,119090.0,119080.0,0.6478098]
[1752417158867,0.82695162,119090.0,119080.0,0.7748698]
[1752417159167,0.18863162,119090.0,119080.0,1.1356698]
[1752417159370,0.82691162,119090.0,119080.0,1.1356698]
[1752417160561,0.85033162,119090.0,119080.0,1.1356698]
[1752417161970,0.18863162,119090.0,119080.0,1.5536138]
[1752417162165,0.02076592,119090.0,119080.0,1.5536138]
[1752417162365,0.02076592,119090.0,119080.0,1.62138508]
[1752417163667,0.18863162,119090.0,119080.0,1.62138508]
[1752417164263,0.18863162,119090.0,119080.0,1.37138508]
[1752417164567,0.18863162,119090.0,119080.0,1.37158508]
[1752417165159,0.02076592,119090.0,119080.0,1.37158508]
[1752417166669,0.02076592,119090.0,119080.0,1.20364108]
[1752417167765,0.3604265,119120.0,119110.0,0.4100275]
[1752417167971,0.9557084,119120.0,119110.0,0.7710275]
[1752417168270,1.30871776,119130.0,119120.0,0.4100135]
[1752417168271,0.80973076,119130.0,119120.0,0.4100135]
[1752417168473,0.97754016,119130.0,119120.0,0.7710135]
[1752417168667,0.25528016,119130.0,119120.0,0.7710135]
[1752417168868,0.97746016,119130.0,119120.0,0.7710135]
[1752417169268,0.97746016,119130.0,119120.0,0.7690135]
[1752417169570,0.97746016,119130.0,119120.0,0.7680135]
[1752417169867,0.97746016,119130.0,119120.0,0.77609115]
[1752417170066,0.97746016,119130.0,119120.0,0.7680135]
[1752417170271,0.06505076,119130.0,119120.0,0.7690135]
[1752417170471,0.009,119130.0,119120.0,0.93790149]
[1752417170670,0.009,119130.0,119120.0,0.7700135]
[1752417170871,0.009,119130.0,119120.0,2.21118149]
[1752417172372,0.06005076,119140.0,119130.0,0.4099994]
[1752417172572,0.08347076,119150.0,119140.0,0.2809253]
[1752417172774,0.06005076,119150.0,119140.0,0.7689853]
[1752417173762,0.23183196,119150.0,119140.0,0.7699853]
[1752417173966,0.25525196,119150.0,119140.0,0.7699853]
[1752417174165,0.34051196,119150.0,119140.0,0.7699853]
[1752417174365,0.17273076,119150.0,119140.0,0.7699853]
[1752417174565,0.4068912,119150.0,119140.0,0.7454653]
[1752417174773,0.7676912,119150.0,119140.0,0.0012]
[1752417174968,0.46694196,119150.0,119140.0,0.0012]
[1752417175273,0.46394196,119150.0,119140.0,0.0022]
[1752417175464,0.82674196,119150.0,119140.0,0.0022]
[1752417175663,0.4058912,119150.0,119140.0,0.2606053]
[1752417175887,0.4058912,119150.0,119140.0,0.3876653]
[1752417178272,0.4058912,119150.0,119140.0,0.0022]
[1752417178477,0.7666912,119150.0,119140.0,0.0022]
[1752417178667,1.1845552,119150.0,119140.0,0.0022]
[1752417179073,1.24460596,119150.0,119140.0,0.0022]
[1752417179273,1.1845552,119150.0,119140.0,0.0022]
[1752417180069,0.7666912,119150.0,119140.0,0.09281]
[1752417180268,0.7666912,119150.0,119140.0,0.3876653]
[1752417180269,1.0414112,119150.0,119140.0,0.3876653]
[1752417180479,1.4022112,119150.0,119140.0,0.0022]
[1752417181281,1.5700752,119150.0,119140.0,0.0022]
[1752417181476,0.2530693,119130.0,119120.0,0.78991871]
[1752417181680,1.0380793,119130.0,119120.0,0.78991871]
[1752417182082,1.0380793,119130.0,119120.0,0.81443871]
[1752417182376,1.0380793,119130.0,119120.0,0.74796291]
[1752417182582,1.3988793,119130.0,119120.0,0.00167891]
[1752417183980,1.45893006,119130.0,119120.0,0.00167891]
[1752417184479,0.1678516,119100.0,119090.0,0.40269411]
[1752417184679,0.9113716,119100.0,119090.0,0.62036411]
[1752417185182,1.0378016,119100.0,119090.0,0.62036411]
[1752417185682,1.0378016,119100.0,119090.0,0.25956411]
[1752417186183,1.0378016,119100.0,119090.0,0.23504411]
[1752417186379,0.9113716,119100.0,119090.0,0.25966411]
[1752417186581,0.8024916,119100.0,119090.0,0.78832981]
[1752417186780,0.8024916,119100.0,119090.0,0.62046411]
[1752417186781,0.9089916,119100.0,119090.0,0.62046411]
[1752417186986,0.2748742,119110.0,119100.0,0.24711]
[1752417187175,0.9094342,119110.0,119100.0,0.60791]
[1752417187587,0.2748742,119110.0,119100.0,0.7757616]
[1752417187781,0.9093942,119110.0,119100.0,0.60791]
[1752417187982,0.9927942,119110.0,119100.0,0.60791]
[1752417189788,0.8860142,119110.0,119100.0,0.7757616]
[1752417189985,0.4027516,119100.0,119090.0,0.009]
[1752417190487,0.4027516,119100.0,119090.0,0.004]
[1752417190686,0.6801516,119100.0,119090.0,0.004]
[1752417190881,0.3193657,119090.0,119080.0,0.02145872]
[1752417191081,1.9484457,119090.0,119080.0,0.02145872]
[1752417191585,1.5876457,119090.0,119080.0,0.02145872]
[1752417192084,1.5876457,119090.0,119080.0,0.02845872]
[1752417192288,1.5886457,119090.0,119080.0,0.02845872]
[1752417193487,1.5886457,119090.0,119080.0,0.01061086]
[1752417193986,1.9494457,119090.0,119080.0,0.01061086]
[1752417194996,0.167894,119070.0,119060.0,0.36586043]
[1752417195289,1.586874,119070.0,119060.0,0.00506043]
[1752417195696,1.59512959,119070.0,119060.0,0.00506043]
[1752417196696,1.95592959,119070.0,119060.0,0.00506043]
[1752417197092,1.95892959,119070.0,119060.0,0.01406043]
[1752417197992,1.950674,119070.0,119060.0,0.01406043]
[1752417198197,1.589874,119070.0,119060.0,0.01406043]
[1752417199187,1.5982011,119070.0,119060.0,0.01406043]
[1752417199391,1.9590011,119070.0,119060.0,0.01406043]
[1752417201100,1.8075011,119070.0,119060.0,0.01406043]
[1752417201304,0.8124611,119070.0,119060.0,0.01406043]
[1752417204796,0.803774,119070.0,119060.0,0.01406043]
[1752417205405,0.803614,119070.0,119060.0,0.01406043]
[1752417205797,0.170894,119070.0,119060.0,0.01406043]
[1752417206104,0.803494,119070.0,119060.0,0.54276853]
[1752417206301,0.803494,119070.0,119060.0,0.37486043]
[1752417206606,0.803494,119070.0,119060.0,0.54276853]
[1752417206804,0.803494,119070.0,119060.0,0.37486043]
[1752417209301,0.803494,119070.0,119060.0,0.01406043]
[1752417210505,0.803494,119070.0,119060.0,0.37486043]
[1752417211304,1.164294,119070.0,119060.0,0.01406043]
[1752417211504,1.164294,119070.0,119060.0,0.37486043]
[1752417211505,0.803494,119070.0,119060.0,0.37486043]
[1752417211704,0.170894,119070.0,119060.0,0.37486043]
[1752417211904,0.802894,119070.0,119060.0,0.37486043]
[1752417212104,0.802894,119070.0,119060.0,0.54276853]
[1752417213009,0.170894,119070.0,119060.0,0.54276853]
[1752417213206,0.170894,119070.0,119060.0,0.37486043]
[1752417213207,0.802814,119070.0,119060.0,0.37486043]
[1752417213410,0.802814,119070.0,119060.0,0.18196853]
[1752417213708,0.802614,119070.0,119060.0,0.54276853]
[1752417214009,0.170894,119070.0,119060.0,0.54276853]
[1752417214201,0.802614,119070.0,119060.0,0.54276853]
[1752417214395,0.802614,119070.0,119060.0,0.18196853]